[Event "Early-Titled-Tuesday-Blitz-May-28-2024"]
[Site "Chess.com"]
[Date "2024.05.28"]
[Round "9"]
[White "DominguezOnYoutube"]
[Black "crescentmoon2411"]
[Result "1-0"]
[WhiteElo "2994"]
[BlackElo "2898"]
[TimeControl "180+1"]
[EndTime "9:47:41 PDT"]
[Termination "DominguezOnYoutube won by resignation"]

1. e4 {[%clk 0:03:00.9]} 1... c6 {[%clk 0:02:57.7]} 2. d4 {[%clk 0:03:00.4]}
2... d5 {[%clk 0:02:58.6]} 3. e5 {[%clk 0:03:00.9]} 3... Bf5 {[%clk 0:02:58.6]}
4. Nf3 {[%clk 0:03:01.1]} 4... e6 {[%clk 0:02:58.6]} 5. Be2 {[%clk 0:03:01.5]}
5... c5 {[%clk 0:02:58.5]} 6. Be3 {[%clk 0:03:01]} 6... Nc6 {[%clk 0:02:59.2]}
7. dxc5 {[%clk 0:02:58.5]} 7... Nge7 {[%clk 0:02:58]} 8. c3 {[%clk 0:02:56.1]}
8... Bg4 {[%clk 0:02:54.4]} 9. Nbd2 {[%clk 0:02:40.6]} 9... Nf5 {[%clk
0:02:53.7]} 10. Bd4 {[%clk 0:02:41.1]} 10... Bxf3 {[%clk 0:02:34.6]} 11. Nxf3
{[%clk 0:02:40.6]} 11... g5 {[%clk 0:02:35.3]} 12. h3 {[%clk 0:02:32.1]} 12...
Bg7 {[%clk 0:02:28.8]} 13. Bd3 {[%clk 0:02:10.9]} 13... Nfxd4 {[%clk 0:02:23.2]}
14. cxd4 {[%clk 0:02:11.8]} 14... h5 {[%clk 0:02:23.1]} 15. Qa4 {[%clk
0:02:10.4]} 15... g4 {[%clk 0:01:59.4]} 16. hxg4 {[%clk 0:02:08]} 16... hxg4
{[%clk 0:02:00.3]} 17. Rxh8+ {[%clk 0:02:07.6]} 17... Bxh8 {[%clk 0:02:01.2]}
18. Nd2 {[%clk 0:01:58]} 18... g3 {[%clk 0:01:36.8]} 19. Nf3 {[%clk 0:01:51.9]}
19... Bg7 {[%clk 0:01:06.7]} 20. Bb5 {[%clk 0:01:45.5]} 20... Kf8 {[%clk
0:00:58.5]} 21. Bxc6 {[%clk 0:01:44.1]} 21... bxc6 {[%clk 0:00:59.4]} 22. fxg3
{[%clk 0:01:31.3]} 22... Rb8 {[%clk 0:00:50.5]} 23. b4 {[%clk 0:01:24.1]} 23...
Kg8 {[%clk 0:00:28.2]} 24. a3 {[%clk 0:01:22.3]} 24... Qc7 {[%clk 0:00:26.5]}
25. Kf2 {[%clk 0:01:20.2]} 25... f6 {[%clk 0:00:26]} 26. exf6 {[%clk 0:01:09.4]}
26... Bxf6 {[%clk 0:00:26.9]} 27. Re1 {[%clk 0:01:07.4]} 27... Rf8 {[%clk
0:00:27.1]} 28. Qd1 {[%clk 0:00:53.5]} 28... e5 {[%clk 0:00:27.1]} 29. dxe5
{[%clk 0:00:46.7]} 29... Bxe5 {[%clk 0:00:28]} 30. Kg1 {[%clk 0:00:44.1]} 30...
Bxg3 {[%clk 0:00:27.9]} 31. Re6 {[%clk 0:00:43]} 31... Qg7 {[%clk 0:00:20.9]}
32. Qb1 {[%clk 0:00:32.5]} 32... Rxf3 {[%clk 0:00:12.2]} 33. Rg6 {[%clk
0:00:17.3]} 33... Re3 {[%clk 0:00:11.4]} 34. Rxg7+ {[%clk 0:00:13.9]} 34... Kxg7
{[%clk 0:00:12.3]} 35. Kf1 {[%clk 0:00:14.1]} 35... d4 {[%clk 0:00:09]} 36. Qc1
{[%clk 0:00:13]} 36... a6 {[%clk 0:00:06.2]} 37. a4 {[%clk 0:00:12.3]} 37... Kf8
{[%clk 0:00:05.1]} 38. b5 {[%clk 0:00:12.2]} 38... axb5 {[%clk 0:00:06]} 39.
axb5 {[%clk 0:00:12.1]} 39... cxb5 {[%clk 0:00:06.9]} 40. c6 {[%clk 0:00:12.2]}
40... Rc3 {[%clk 0:00:06.9]} 41. Qg5 {[%clk 0:00:10.6]} 41... b4 {[%clk
0:00:04.2]} 42. Qf6+ {[%clk 0:00:09]} 42... Ke8 {[%clk 0:00:03.5]} 43. Qe6+
{[%clk 0:00:08.9]} 43... Kf8 {[%clk 0:00:03.3]} 44. Qf6+ {[%clk 0:00:08.9]}
44... Ke8 {[%clk 0:00:03.1]} 45. Qxd4 {[%clk 0:00:09]} 45... Rxc6 {[%clk
0:00:01.6]} 46. Qe4+ {[%clk 0:00:08.4]} 46... Kd7 {[%clk 0:00:01.9]} 47. Qg4+
{[%clk 0:00:08.7]} 47... Kc7 {[%clk 0:00:01.8]} 48. Qxg3+ {[%clk 0:00:09.1]}
48... Kb6 {[%clk 0:00:02.6]} 49. Qb3 {[%clk 0:00:09.6]} 49... Kb5 {[%clk
0:00:03.1]} 50. g4 {[%clk 0:00:09.9]} 50... Rc3 {[%clk 0:00:03.7]} 51. Qd5+
{[%clk 0:00:10.1]} 51... Ka4 {[%clk 0:00:03.6]} 52. g5 {[%clk 0:00:09.8]} 52...
b3 {[%clk 0:00:04.2]} 53. Qd4+ {[%clk 0:00:10.2]} 1-0

[Event "Early-Titled-Tuesday-Blitz-May-28-2024"]
[Site "Chess.com"]
[Date "2024.05.28"]
[Round "9"]
[White "rookpower2004"]
[Black "alreadybroken23"]
[Result "0-1"]
[WhiteElo "2485"]
[BlackElo "2608"]
[TimeControl "180+1"]
[EndTime "9:47:42 PDT"]
[Termination "alreadybroken23 won on time"]

1. e4 {[%clk 0:03:00.9]} 1... c5 {[%clk 0:02:54.9]} 2. Nf3 {[%clk 0:02:59.7]}
2... d6 {[%clk 0:02:55]} 3. d4 {[%clk 0:02:58.6]} 3... cxd4 {[%clk 0:02:55.9]}
4. Nxd4 {[%clk 0:02:58.5]} 4... Nf6 {[%clk 0:02:56.6]} 5. Nc3 {[%clk 0:02:57.3]}
5... e5 {[%clk 0:02:56.3]} 6. Nb3 {[%clk 0:02:55.5]} 6... Be7 {[%clk 0:02:49.9]}
7. Bg5 {[%clk 0:02:50.1]} 7... O-O {[%clk 0:02:48.9]} 8. Qd2 {[%clk 0:02:44]}
8... Be6 {[%clk 0:02:43.7]} 9. O-O-O {[%clk 0:02:41.8]} 9... Nbd7 {[%clk
0:02:18.3]} 10. Kb1 {[%clk 0:02:30.4]} 10... a5 {[%clk 0:02:17.4]} 11. f4 {[%clk
0:02:28.4]} 11... a4 {[%clk 0:02:15.5]} 12. Nc1 {[%clk 0:02:27.5]} 12... exf4
{[%clk 0:02:10.9]} 13. Bxf4 {[%clk 0:02:26.1]} 13... Ne5 {[%clk 0:02:08.8]} 14.
a3 {[%clk 0:02:19.1]} 14... Nh5 {[%clk 0:01:34.5]} 15. Bxe5 {[%clk 0:02:13.4]}
15... dxe5 {[%clk 0:01:34.4]} 16. Bb5 {[%clk 0:02:11.6]} 16... Qb6 {[%clk
0:01:26.6]} 17. Qe2 {[%clk 0:02:07.8]} 17... Nf4 {[%clk 0:01:24.9]} 18. Qf3
{[%clk 0:02:03.2]} 18... Rfc8 {[%clk 0:01:22]} 19. g3 {[%clk 0:02:01.4]} 19...
Ng6 {[%clk 0:01:14.5]} 20. Qe2 {[%clk 0:02:00]} 20... Bxa3 {[%clk 0:00:56.4]}
21. Nd5 {[%clk 0:01:15.3]} 21... Bxd5 {[%clk 0:00:55.6]} 22. Rxd5 {[%clk
0:01:13.1]} 22... Bf8 {[%clk 0:00:55.7]} 23. Rf1 {[%clk 0:01:06.5]} 23... Rc7
{[%clk 0:00:54]} 24. Bc4 {[%clk 0:01:01]} 24... Qc6 {[%clk 0:00:45.2]} 25. Ba2
{[%clk 0:00:56.4]} 25... Rac8 {[%clk 0:00:42.1]} 26. Rd3 {[%clk 0:00:45.1]}
26... a3 {[%clk 0:00:39.9]} 27. bxa3 {[%clk 0:00:40.1]} 27... Qb5+ {[%clk
0:00:27.9]} 28. Bb3 {[%clk 0:00:39.6]} 28... Qa5 {[%clk 0:00:17.7]} 29. Rdf3
{[%clk 0:00:34.4]} 29... Kh8 {[%clk 0:00:15.4]} 30. a4 {[%clk 0:00:30.9]} 30...
f6 {[%clk 0:00:12.6]} 31. Qb5 {[%clk 0:00:27.3]} 31... Qa7 {[%clk 0:00:08.9]}
32. R3f2 {[%clk 0:00:19.5]} 32... Rc5 {[%clk 0:00:07.9]} 33. Qd3 {[%clk
0:00:17]} 33... Qb6 {[%clk 0:00:05.9]} 34. Rd2 {[%clk 0:00:13.7]} 34... Rc3
{[%clk 0:00:05]} 35. Qd7 {[%clk 0:00:12.8]} 35... R3c7 {[%clk 0:00:04.9]} 36.
Qd3 {[%clk 0:00:12.4]} 36... Bb4 {[%clk 0:00:05]} 37. Re2 {[%clk 0:00:11.1]}
37... Bc3 {[%clk 0:00:05.2]} 38. Na2 {[%clk 0:00:09.8]} 38... Bd4 {[%clk
0:00:05.7]} 39. Rd1 {[%clk 0:00:06.4]} 39... Qc5 {[%clk 0:00:06.1]} 40. c3
{[%clk 0:00:04.1]} 40... Ne7 {[%clk 0:00:02]} 41. cxd4 {[%clk 0:00:03.1]} 41...
Qb6 {[%clk 0:00:02.9]} 42. Rb2 {[%clk 0:00:01.7]} 42... Rd7 {[%clk 0:00:02]} 43.
Bd5 {[%clk 0:00:00.6]} 43... Qd6 {[%clk 0:00:02.2]} 0-1

[Event "Early-Titled-Tuesday-Blitz-May-28-2024"]
[Site "Chess.com"]
[Date "2024.05.28"]
[Round "9"]
[White "FairChess_on_YouTube"]
[Black "FGHSMN"]
[Result "1/2-1/2"]
[WhiteElo "3091"]
[BlackElo "2924"]
[TimeControl "180+1"]
[EndTime "9:47:43 PDT"]
[Termination "Game drawn by repetition"]

1. c4 {[%clk 0:03:00.9]} 1... Nf6 {[%clk 0:02:59.5]} 2. Nc3 {[%clk 0:03:00.2]}
2... c5 {[%clk 0:03:00.1]} 3. g3 {[%clk 0:02:58.3]} 3... d5 {[%clk 0:02:59.9]}
4. cxd5 {[%clk 0:02:57.8]} 4... Nxd5 {[%clk 0:03:00.8]} 5. Bg2 {[%clk
0:02:58.1]} 5... Nxc3 {[%clk 0:03:00.1]} 6. bxc3 {[%clk 0:02:59]} 6... Nc6
{[%clk 0:03:00]} 7. Rb1 {[%clk 0:02:51.5]} 7... Qc7 {[%clk 0:02:59.3]} 8. Nf3
{[%clk 0:02:49]} 8... e5 {[%clk 0:02:59.9]} 9. d3 {[%clk 0:02:48.8]} 9... Be7
{[%clk 0:03:00.3]} 10. O-O {[%clk 0:02:47.9]} 10... O-O {[%clk 0:03:00.9]} 11.
Qa4 {[%clk 0:02:39.5]} 11... Bd7 {[%clk 0:02:58.6]} 12. Nd2 {[%clk 0:02:32.3]}
12... Rab8 {[%clk 0:02:51]} 13. c4 {[%clk 0:02:29.9]} 13... b6 {[%clk
0:02:48.2]} 14. Ne4 {[%clk 0:02:25.4]} 14... Nd4 {[%clk 0:02:46.8]} 15. Qd1
{[%clk 0:02:25.4]} 15... Bg4 {[%clk 0:02:47.3]} 16. Nc3 {[%clk 0:02:20.5]} 16...
Qd7 {[%clk 0:02:46.3]} 17. Be3 {[%clk 0:02:17.6]} 17... h5 {[%clk 0:02:44.3]}
18. Bxd4 {[%clk 0:02:16.2]} 18... exd4 {[%clk 0:02:43.4]} 19. Nd5 {[%clk
0:02:16.8]} 19... Bd6 {[%clk 0:02:41.3]} 20. Bf3 {[%clk 0:02:16.8]} 20... Bh3
{[%clk 0:02:33.6]} 21. Re1 {[%clk 0:02:15.9]} 21... h4 {[%clk 0:02:33.9]} 22.
Qd2 {[%clk 0:02:08.9]} 22... Rbe8 {[%clk 0:02:31.2]} 23. Qg5 {[%clk 0:02:06.6]}
23... Be7 {[%clk 0:02:15.7]} 24. Qh5 {[%clk 0:02:06.3]} 24... Bd8 {[%clk
0:01:58.9]} 25. Nf4 {[%clk 0:01:47.2]} 25... Bf5 {[%clk 0:01:51.4]} 26. Bc6
{[%clk 0:01:34.2]} 26... Qxc6 {[%clk 0:01:51.2]} 27. Qxf5 {[%clk 0:01:34.4]}
27... Bc7 {[%clk 0:01:48.3]} 28. Nd5 {[%clk 0:01:33.1]} 28... Bb8 {[%clk
0:01:44.4]} 29. Qg4 {[%clk 0:01:21.7]} 29... hxg3 {[%clk 0:01:33.5]} 30. hxg3
{[%clk 0:01:21.5]} 30... Qe6 {[%clk 0:01:25.8]} 31. Qh5 {[%clk 0:01:06.7]} 31...
Qe5 {[%clk 0:01:21.4]} 32. Qh3 {[%clk 0:01:01.7]} 32... Re6 {[%clk 0:01:20.8]}
33. Kg2 {[%clk 0:00:54.1]} 33... Rh6 {[%clk 0:01:20.6]} 34. Qg4 {[%clk 0:00:54]}
34... Re8 {[%clk 0:01:21.1]} 35. Qf3 {[%clk 0:00:34.9]} 35... Bd6 {[%clk
0:01:21]} 36. Rh1 {[%clk 0:00:33.7]} 36... Ree6 {[%clk 0:01:06.9]} 37. Rxh6
{[%clk 0:00:27.4]} 37... Rxh6 {[%clk 0:01:07.8]} 38. Rh1 {[%clk 0:00:27.2]}
38... Rxh1 {[%clk 0:01:07.1]} 39. Kxh1 {[%clk 0:00:28.1]} 39... g6 {[%clk
0:01:06.5]} 40. Kg2 {[%clk 0:00:24.9]} 40... Kg7 {[%clk 0:01:06.5]} 41. Qg4
{[%clk 0:00:25]} 41... b5 {[%clk 0:01:04.7]} 42. Qd7 {[%clk 0:00:21.3]} 42...
bxc4 {[%clk 0:01:03.8]} 43. dxc4 {[%clk 0:00:21.4]} 43... Qe4+ {[%clk
0:01:03.8]} 44. Kg1 {[%clk 0:00:21]} 44... Be5 {[%clk 0:01:04.4]} 45. Qe7 {[%clk
0:00:14]} 45... Qxe2 {[%clk 0:00:57.5]} 46. f4 {[%clk 0:00:13.6]} 46... Qd1+
{[%clk 0:00:54.2]} 47. Kg2 {[%clk 0:00:13.1]} 47... Qe2+ {[%clk 0:00:44.4]} 48.
Kg1 {[%clk 0:00:11.1]} 48... Qd1+ {[%clk 0:00:37.9]} 49. Kg2 {[%clk 0:00:11.6]}
49... Qe2+ {[%clk 0:00:21.1]} 50. Kh3 {[%clk 0:00:11.9]} 50... Qf1+ {[%clk
0:00:20.2]} 51. Kh2 {[%clk 0:00:12]} 51... Qf2+ {[%clk 0:00:20.6]} 52. Kh3
{[%clk 0:00:11.8]} 52... Qf1+ {[%clk 0:00:19.8]} 53. Kh2 {[%clk 0:00:12.2]}
53... Qe2+ {[%clk 0:00:16.2]} 54. Kh3 {[%clk 0:00:11.3]} 54... Qh5+ {[%clk
0:00:13.2]} 55. Kg2 {[%clk 0:00:11.6]} 55... Qe2+ {[%clk 0:00:12.4]} 1/2-1/2

[Event "Early-Titled-Tuesday-Blitz-May-28-2024"]
[Site "Chess.com"]
[Date "2024.05.28"]
[Round "9"]
[White "JoliyRoger"]
[Black "Alexchess1984"]
[Result "1-0"]
[WhiteElo "2460"]
[BlackElo "2588"]
[TimeControl "180+1"]
[EndTime "9:47:44 PDT"]
[Termination "JoliyRoger won by checkmate"]

1. d4 {[%clk 0:02:52.5]} 1... e6 {[%clk 0:02:59.3]} 2. c4 {[%clk 0:02:46.1]}
2... c5 {[%clk 0:02:58.1]} 3. d5 {[%clk 0:02:46]} 3... exd5 {[%clk 0:02:55.8]}
4. cxd5 {[%clk 0:02:46.9]} 4... d6 {[%clk 0:02:55.7]} 5. Nc3 {[%clk 0:02:47.4]}
5... g6 {[%clk 0:02:55.6]} 6. e4 {[%clk 0:02:48]} 6... Bg7 {[%clk 0:02:55.9]} 7.
Nf3 {[%clk 0:02:48.6]} 7... a6 {[%clk 0:02:53.5]} 8. a4 {[%clk 0:02:43.8]} 8...
Bg4 {[%clk 0:02:52]} 9. Be2 {[%clk 0:02:44.4]} 9... Bxf3 {[%clk 0:02:50.3]} 10.
Bxf3 {[%clk 0:02:44.5]} 10... Nd7 {[%clk 0:02:50.9]} 11. O-O {[%clk 0:02:32.6]}
11... Ngf6 {[%clk 0:02:45.1]} 12. Bf4 {[%clk 0:02:28.7]} 12... Qe7 {[%clk
0:02:40.6]} 13. Qb3 {[%clk 0:02:21]} 13... Rb8 {[%clk 0:02:36.9]} 14. Rfe1
{[%clk 0:02:00.9]} 14... Ne5 {[%clk 0:02:25.1]} 15. Be2 {[%clk 0:01:53.9]} 15...
O-O {[%clk 0:02:24.3]} 16. h3 {[%clk 0:01:54.3]} 16... h5 {[%clk 0:02:09.7]} 17.
Bg5 {[%clk 0:01:46.5]} 17... Qc7 {[%clk 0:01:55.9]} 18. f4 {[%clk 0:01:46.2]}
18... Ned7 {[%clk 0:01:43.2]} 19. Bc4 {[%clk 0:01:41.5]} 19... Rfe8 {[%clk
0:01:38]} 20. e5 {[%clk 0:01:30.4]} 20... Nh7 {[%clk 0:01:33.7]} 21. e6 {[%clk
0:01:30.7]} 21... Nxg5 {[%clk 0:01:31.4]} 22. fxg5 {[%clk 0:01:25.8]} 22... Ne5
{[%clk 0:01:21.9]} 23. Ne4 {[%clk 0:01:18.3]} 23... Nxc4 {[%clk 0:01:15.3]} 24.
Qxc4 {[%clk 0:01:17.6]} 24... Bxb2 {[%clk 0:00:52.2]} 25. Nf6+ {[%clk 0:01:07]}
25... Kg7 {[%clk 0:00:52.1]} 26. Nxe8+ {[%clk 0:00:37.5]} 26... Rxe8 {[%clk
0:00:51.3]} 27. exf7 {[%clk 0:00:38]} 27... Qxf7 {[%clk 0:00:48.8]} 28. Rxe8
{[%clk 0:00:29.7]} 28... Qxe8 {[%clk 0:00:42.8]} 29. Rb1 {[%clk 0:00:28.9]}
29... b5 {[%clk 0:00:31.9]} 30. axb5 {[%clk 0:00:28.2]} 30... axb5 {[%clk
0:00:32.2]} 31. Qd3 {[%clk 0:00:15.3]} 31... Bd4+ {[%clk 0:00:31.5]} 32. Kh1
{[%clk 0:00:16]} 32... b4 {[%clk 0:00:31.8]} 33. Rf1 {[%clk 0:00:12.3]} 33...
Qe3 {[%clk 0:00:27.6]} 34. Qa6 {[%clk 0:00:11.3]} 34... Qxg5 {[%clk 0:00:24.5]}
35. Qxd6 {[%clk 0:00:08.8]} 35... Kh7 {[%clk 0:00:10.8]} 36. Qc7+ {[%clk
0:00:05.8]} 36... Kh6 {[%clk 0:00:09.4]} 37. d6 {[%clk 0:00:06]} 37... Be5
{[%clk 0:00:08.2]} 38. Qe7 {[%clk 0:00:03.3]} 38... Qg3 {[%clk 0:00:01]} 39.
Qf8+ {[%clk 0:00:01.2]} 39... Bg7 {[%clk 0:00:01.1]} 40. d7 {[%clk 0:00:01]}
40... Qh2+ {[%clk 0:00:02]} 41. Kxh2 {[%clk 0:00:00.8]} 41... Bxf8 {[%clk
0:00:01.1]} 42. Kh1 {[%clk 0:00:01.7]} 42... g5 {[%clk 0:00:01.9]} 43. Rxf8
{[%clk 0:00:01.8]} 43... g4 {[%clk 0:00:02.8]} 44. d8=Q {[%clk 0:00:02.5]} 44...
gxh3 {[%clk 0:00:02.9]} 45. Qf6+ {[%clk 0:00:03.2]} 45... Kh7 {[%clk 0:00:02.8]}
46. Rh8# {[%clk 0:00:03.4]} 1-0

[Event "Early-Titled-Tuesday-Blitz-May-28-2024"]
[Site "Chess.com"]
[Date "2024.05.28"]
[Round "9"]
[White "Statham_01"]
[Black "HajiyevKanan"]
[Result "1-0"]
[WhiteElo "2700"]
[BlackElo "2512"]
[TimeControl "180+1"]
[EndTime "9:47:56 PDT"]
[Termination "Statham_01 won by checkmate"]

1. e4 {[%clk 0:02:59.8]} 1... c6 {[%clk 0:02:57.2]} 2. d4 {[%clk 0:02:59.3]}
2... d5 {[%clk 0:02:58.1]} 3. f3 {[%clk 0:02:59.7]} 3... a6 {[%clk 0:02:56.1]}
4. Nc3 {[%clk 0:02:59.3]} 4... b5 {[%clk 0:02:54.7]} 5. a3 {[%clk 0:02:58.2]}
5... Nf6 {[%clk 0:02:53.5]} 6. e5 {[%clk 0:02:57.6]} 6... Ng8 {[%clk 0:02:53.5]}
7. f4 {[%clk 0:02:57.4]} 7... Bf5 {[%clk 0:02:52.2]} 8. Nf3 {[%clk 0:02:58.3]}
8... e6 {[%clk 0:02:51.8]} 9. Be3 {[%clk 0:02:53.5]} 9... Nd7 {[%clk 0:02:48.1]}
10. Ne2 {[%clk 0:02:48.4]} 10... c5 {[%clk 0:02:48]} 11. c3 {[%clk 0:02:48]}
11... Qb6 {[%clk 0:02:48.6]} 12. b4 {[%clk 0:02:44.7]} 12... cxb4 {[%clk
0:02:34.5]} 13. axb4 {[%clk 0:02:40.6]} 13... Nh6 {[%clk 0:02:31.2]} 14. h3
{[%clk 0:02:39.4]} 14... Be4 {[%clk 0:02:28.8]} 15. Nd2 {[%clk 0:02:32.5]} 15...
Bd3 {[%clk 0:02:28]} 16. Nc1 {[%clk 0:02:25.8]} 16... Bxf1 {[%clk 0:02:27.6]}
17. Nxf1 {[%clk 0:02:25]} 17... Nf5 {[%clk 0:02:28.5]} 18. Nb3 {[%clk
0:02:22.1]} 18... h5 {[%clk 0:02:25.8]} 19. Bf2 {[%clk 0:02:17]} 19... Be7
{[%clk 0:02:19.2]} 20. Nfd2 {[%clk 0:02:08.6]} 20... Rc8 {[%clk 0:02:17]} 21.
Nc5 {[%clk 0:02:06.8]} 21... Bxc5 {[%clk 0:02:12.8]} 22. bxc5 {[%clk 0:02:02.1]}
22... Qb7 {[%clk 0:02:12.6]} 23. O-O {[%clk 0:01:59.7]} 23... Nb8 {[%clk
0:02:11.8]} 24. Nb3 {[%clk 0:01:51]} 24... Nc6 {[%clk 0:02:10.6]} 25. Qe2 {[%clk
0:01:40.8]} 25... g6 {[%clk 0:02:00.1]} 26. Ra2 {[%clk 0:01:39.8]} 26... Ra8
{[%clk 0:01:53.7]} 27. Rfa1 {[%clk 0:01:36.8]} 27... Kd7 {[%clk 0:01:54.1]} 28.
Na5 {[%clk 0:01:17.6]} 28... Qc7 {[%clk 0:01:51.2]} 29. Qd1 {[%clk 0:01:04.9]}
29... Nxa5 {[%clk 0:01:44.4]} 30. Rxa5 {[%clk 0:01:04.3]} 30... Ne7 {[%clk
0:01:45.1]} 31. Bh4 {[%clk 0:01:00.7]} 31... Nc6 {[%clk 0:01:44.8]} 32. R5a2
{[%clk 0:00:58.5]} 32... a5 {[%clk 0:01:43.1]} 33. Qe2 {[%clk 0:00:54.6]} 33...
Qb7 {[%clk 0:01:38.7]} 34. Bf6 {[%clk 0:00:54.7]} 34... Rhb8 {[%clk 0:01:24.1]}
35. Rb2 {[%clk 0:00:46.7]} 35... b4 {[%clk 0:01:21.9]} 36. c4 {[%clk 0:00:30.8]}
36... Nxd4 {[%clk 0:01:13]} 37. Qd3 {[%clk 0:00:30.1]} 37... Nf5 {[%clk
0:01:10.7]} 38. g4 {[%clk 0:00:29.7]} 38... hxg4 {[%clk 0:01:02.8]} 39. hxg4
{[%clk 0:00:30.6]} 39... Nh6 {[%clk 0:01:03.6]} 40. cxd5 {[%clk 0:00:18.7]}
40... Qxd5 {[%clk 0:00:59.8]} 41. Qe2 {[%clk 0:00:10.3]} 41... Kc6 {[%clk
0:00:53.8]} 42. Rd2 {[%clk 0:00:08.3]} 42... Qxc5+ {[%clk 0:00:51.3]} 43. Kg2
{[%clk 0:00:08.5]} 43... b3 {[%clk 0:00:44.2]} 44. Rad1 {[%clk 0:00:03.8]} 44...
Rc8 {[%clk 0:00:30.9]} 45. Rd6+ {[%clk 0:00:04.1]} 45... Kb7 {[%clk 0:00:31.5]}
46. Rd7+ {[%clk 0:00:04.5]} 46... Rc7 {[%clk 0:00:31.7]} 47. R7d3 {[%clk
0:00:04.8]} 47... a4 {[%clk 0:00:30.2]} 48. Rd4 {[%clk 0:00:05.1]} 48... Ra5
{[%clk 0:00:28.8]} 49. Qe4+ {[%clk 0:00:05.2]} 49... Qc6 {[%clk 0:00:28.9]} 50.
Rb4+ {[%clk 0:00:04.7]} 50... Ka6 {[%clk 0:00:29.5]} 51. Rd6 {[%clk 0:00:03.1]}
51... Qxd6 {[%clk 0:00:20.4]} 52. exd6 {[%clk 0:00:04]} 52... Rd7 {[%clk
0:00:20.8]} 53. Qc4+ {[%clk 0:00:03.7]} 53... Ka7 {[%clk 0:00:20.5]} 54. Bd4+
{[%clk 0:00:03.9]} 54... Ka8 {[%clk 0:00:20.6]} 55. Qc6+ {[%clk 0:00:04]} 55...
Rb7 {[%clk 0:00:17.7]} 56. Qxb7# {[%clk 0:00:03.9]} 1-0

[Event "Early-Titled-Tuesday-Blitz-May-28-2024"]
[Site "Chess.com"]
[Date "2024.05.28"]
[Round "9"]
[White "jbking07"]
[Black "Arteler"]
[Result "0-1"]
[WhiteElo "2364"]
[BlackElo "2247"]
[TimeControl "180+1"]
[EndTime "9:47:59 PDT"]
[Termination "Arteler won by resignation"]

1. e4 {[%clk 0:03:00.9]} 1... e5 {[%clk 0:02:57]} 2. Nf3 {[%clk 0:03:01.1]} 2...
d6 {[%clk 0:02:57.8]} 3. d4 {[%clk 0:03:00.9]} 3... exd4 {[%clk 0:02:58.7]} 4.
Nxd4 {[%clk 0:03:01.8]} 4... Nf6 {[%clk 0:02:59.3]} 5. Nc3 {[%clk 0:03:02.1]}
5... Be7 {[%clk 0:03:00]} 6. g3 {[%clk 0:03:02.3]} 6... O-O {[%clk 0:03:00.6]}
7. Bg2 {[%clk 0:03:02.5]} 7... Re8 {[%clk 0:03:00.5]} 8. O-O {[%clk 0:03:02.3]}
8... Bf8 {[%clk 0:03:01.1]} 9. h3 {[%clk 0:02:54.6]} 9... Nbd7 {[%clk
0:02:56.4]} 10. g4 {[%clk 0:02:35.8]} 10... Nc5 {[%clk 0:02:51.9]} 11. Re1
{[%clk 0:02:28.1]} 11... a5 {[%clk 0:02:00.3]} 12. Bg5 {[%clk 0:02:18.6]} 12...
Be7 {[%clk 0:01:54.1]} 13. Nb3 {[%clk 0:02:04.9]} 13... Ne6 {[%clk 0:01:39.5]}
14. Be3 {[%clk 0:02:04.7]} 14... h6 {[%clk 0:01:34]} 15. Nd5 {[%clk 0:01:48.7]}
15... Nxd5 {[%clk 0:01:30.6]} 16. exd5 {[%clk 0:01:49.6]} 16... Nf8 {[%clk
0:01:13.8]} 17. a4 {[%clk 0:01:45.6]} 17... Bf6 {[%clk 0:01:12.5]} 18. Nd4
{[%clk 0:01:41.5]} 18... Ng6 {[%clk 0:01:06]} 19. c3 {[%clk 0:01:37.7]} 19...
Bg5 {[%clk 0:00:52.1]} 20. Bxg5 {[%clk 0:01:25.6]} 20... hxg5 {[%clk 0:00:38.6]}
21. Rxe8+ {[%clk 0:01:21.7]} 21... Qxe8 {[%clk 0:00:39.5]} 22. Nb5 {[%clk
0:01:21.6]} 22... Qd8 {[%clk 0:00:37.5]} 23. Qd2 {[%clk 0:01:04.3]} 23... Bd7
{[%clk 0:00:33.4]} 24. Nd4 {[%clk 0:00:57.9]} 24... Qf6 {[%clk 0:00:26.4]} 25.
b3 {[%clk 0:00:43.6]} 25... Re8 {[%clk 0:00:26.6]} 26. Re1 {[%clk 0:00:42.2]}
26... Rxe1+ {[%clk 0:00:24.6]} 27. Qxe1 {[%clk 0:00:43.1]} 27... Ne5 {[%clk
0:00:20.5]} 28. Qe3 {[%clk 0:00:39.1]} 28... Ng6 {[%clk 0:00:17.5]} 29. Bf1
{[%clk 0:00:33.1]} 29... Nf4 {[%clk 0:00:12.8]} 30. Kh2 {[%clk 0:00:29.9]} 30...
Nxd5 {[%clk 0:00:12.5]} 31. Qd2 {[%clk 0:00:26]} 31... Qe5+ {[%clk 0:00:11.4]}
32. Kg1 {[%clk 0:00:24.5]} 32... Nf4 {[%clk 0:00:08.5]} 33. Bg2 {[%clk
0:00:22.2]} 33... Nxg2 {[%clk 0:00:08.1]} 34. Kxg2 {[%clk 0:00:23.1]} 34... c5
{[%clk 0:00:08.8]} 35. Nf3 {[%clk 0:00:21.9]} 35... Bc6 {[%clk 0:00:09.3]} 36.
Qe3 {[%clk 0:00:19.7]} 36... Qf6 {[%clk 0:00:08.3]} 37. Kg3 {[%clk 0:00:18.4]}
37... Bxf3 {[%clk 0:00:08]} 38. Qxf3 {[%clk 0:00:18.4]} 38... Qxf3+ {[%clk
0:00:08.6]} 39. Kxf3 {[%clk 0:00:19.3]} 39... f6 {[%clk 0:00:09]} 40. Ke4 {[%clk
0:00:19.6]} 40... Kf7 {[%clk 0:00:09.2]} 41. Kd5 {[%clk 0:00:18.6]} 41... Ke7
{[%clk 0:00:09.5]} 42. Kc4 {[%clk 0:00:09.2]} 42... Ke6 {[%clk 0:00:04.4]} 43.
Kb5 {[%clk 0:00:09]} 43... Ke5 {[%clk 0:00:04.3]} 44. Kxa5 {[%clk 0:00:07]}
44... d5 {[%clk 0:00:04.8]} 45. Kb5 {[%clk 0:00:06.9]} 45... d4 {[%clk
0:00:05.4]} 46. Kc4 {[%clk 0:00:06.1]} 46... Ke4 {[%clk 0:00:05]} 47. cxd4
{[%clk 0:00:01]} 47... cxd4 {[%clk 0:00:05.9]} 48. f3+ {[%clk 0:00:01.4]} 48...
Ke3 {[%clk 0:00:06.4]} 49. a5 {[%clk 0:00:01.2]} 49... d3 {[%clk 0:00:07]} 50.
b4 {[%clk 0:00:01.2]} 50... d2 {[%clk 0:00:07.5]} 51. Kb5 {[%clk 0:00:01]} 51...
d1=Q {[%clk 0:00:07.8]} 52. Kb6 {[%clk 0:00:01.9]} 52... Qd5 {[%clk 0:00:07.6]}
53. b5 {[%clk 0:00:01]} 53... Qd7 {[%clk 0:00:07.8]} 54. a6 {[%clk 0:00:01]}
54... bxa6 {[%clk 0:00:07.6]} 55. bxa6 {[%clk 0:00:01]} 55... Kxf3 {[%clk
0:00:08.5]} 56. a7 {[%clk 0:00:00.9]} 56... Qxa7+ {[%clk 0:00:09.1]} 57. Kxa7
{[%clk 0:00:00.8]} 57... Kg3 {[%clk 0:00:09.8]} 58. Kb6 {[%clk 0:00:01.7]} 58...
Kxh3 {[%clk 0:00:10.1]} 0-1